bitfinex/quotes_BTCUSD_20220218
["timestamp","ask_amount","ask_price","bid_price","bid_amount"]
[1645183071425,0.63349,40438.0,40417.0,0.46179875]
[1645183071426,2.02890435,40428.0,40417.0,0.46179875]
[1645183071730,1.46690004,40428.0,40426.0,0.22670607]
[1645183072125,1.46790004,40428.0,40426.0,0.22670607]
[1645183072323,1.46790004,40428.0,40423.0,0.22016917]
[1645183072923,1.46790004,40428.0,40427.0,0.25036298]
[1645183073325,1.46812089,40428.0,40427.0,0.001]
[1645183074026,1.46712089,40428.0,40427.0,0.001]
[1645183076183,1.46812089,40428.0,40427.0,0.001]
[1645183076382,1.46812089,40428.0,40427.0,0.241]
[1645183077582,1.46712089,40428.0,40427.0,0.241]
[1645183078182,1.46812089,40428.0,40427.0,0.241]
[1645183078382,1.46812089,40428.0,40427.0,0.24034517]
[1645183079532,1.46712089,40428.0,40427.0,0.24034517]
[1645183080131,1.46812089,40428.0,40427.0,0.24034517]
[1645183081631,1.46712089,40428.0,40427.0,0.24034517]
[1645183082232,1.46712089,40428.0,40427.0,0.24134517]
[1645183082477,1.46712089,40428.0,40427.0,0.29074517]
[1645183083478,1.46712089,40428.0,40427.0,0.28974517]
[1645183084176,1.46712089,40428.0,40427.0,0.29174517]
[1645183085580,1.46712089,40428.0,40427.0,0.28974517]
[1645183086227,1.46712089,40428.0,40427.0,0.29074517]
[1645183088229,1.46712089,40428.0,40427.0,0.29174517]
[1645183088830,1.46712089,40428.0,40427.0,0.24234517]
[1645183089632,1.46712089,40428.0,40427.0,0.24034517]
[1645183091678,1.46712089,40428.0,40427.0,0.2406084]
[1645183091878,1.46712089,40428.0,40427.0,0.24034517]
[1645183092278,1.46812089,40428.0,40427.0,0.24034517]
[1645183093625,1.46812089,40428.0,40427.0,0.24016317]
[1645183094228,1.46712089,40428.0,40427.0,0.24116317]
[1645183095435,1.46712089,40428.0,40427.0,0.241]
[1645183095629,1.46712089,40428.0,40427.0,0.16429509]
[1645183095630,1.80061089,40428.0,40427.0,0.16429509]
[1645183095829,2.16256149,40428.0,40427.0,0.07575324]
[1645183096229,1.38988357,40424.0,40421.0,0.001]
[1645183096430,1.38988357,40424.0,40421.0,0.32641691]
[1645183097689,1.38988357,40424.0,40421.0,0.32677378]
[1645183097886,1.38988357,40424.0,40421.0,0.00135687]
[1645183098283,1.39188357,40424.0,40421.0,0.00135687]
[1645183098483,1.39210464,40424.0,40421.0,0.00135687]
[1645183098684,1.39210464,40424.0,40421.0,0.001]
[1645183098885,1.39210464,40424.0,40421.0,0.35007809]
[1645183099084,1.39210464,40424.0,40421.0,0.00135687]
[1645183099085,0.3,40423.0,40421.0,0.00135687]
[1645183099289,1.21666169,40423.0,40421.0,0.00135687]
[1645183099488,0.91666169,40423.0,40421.0,0.00135687]
[1645183099687,0.91666169,40423.0,40422.0,5.02]
[1645183099688,0.27308159,40423.0,40422.0,5.02]
[1645183099987,0.10118,40423.0,40422.0,5.02]
[1645183100389,0.6434783,40423.0,40422.0,5.02]
[1645183100589,1.89790123,40424.0,40422.0,5.02]
[1645183100989,1.58791293,40424.0,40422.0,5.02]
[1645183101437,1.58791293,40424.0,40422.0,4.96827594]
[1645183101438,0.74896467,40423.0,40422.0,4.96827594]
[1645183101834,0.9950501,40423.0,40422.0,4.96827594]
[1645183102032,0.63349,40423.0,40422.0,4.96827594]
[1645183102232,0.68549,40423.0,40422.0,4.96827594]
[1645183102632,0.63549,40423.0,40422.0,4.96827594]
[1645183102836,0.33549,40423.0,40422.0,4.96827594]
[1645183103034,0.63549,40423.0,40422.0,4.96827594]
[1645183103436,0.63549,40423.0,40422.0,4.89417091]
[1645183103437,0.78549,40423.0,40422.0,4.89417091]
[1645183103632,0.90884365,40423.0,40422.0,4.89417091]
[1645183104035,0.96595327,40423.0,40422.0,4.89417091]
[1645183104332,1.10319327,40423.0,40422.0,4.89417091]
[1645183105177,2.45019327,40423.0,40422.0,2.83677017]
[1645183105383,2.46009927,40423.0,40422.0,2.83677017]
[1645183105578,2.44819327,40423.0,40422.0,2.45627712]
[1645183105778,2.44819327,40423.0,40422.0,1.67279432]
[1645183105977,2.44819327,40423.0,40422.0,1.65979432]
[1645183106175,2.44819327,40423.0,40422.0,0.90478394]
[1645183106377,2.44819327,40423.0,40422.0,0.89778394]
[1645183106576,2.44819327,40423.0,40422.0,0.14273752]
[1645183106776,2.44819327,40423.0,40422.0,0.12973752]
[1645183106982,0.9,40422.0,40418.0,0.001]
[1645183107186,0.9,40422.0,40404.0,0.00463488]
[1645183107187,1.297,40418.0,40407.0,0.00100664]
[1645183107381,0.061926,40415.0,40414.0,0.00142461]
[1645183107679,1.63049,40413.0,40407.0,0.00100664]
[1645183107884,1.03349,40408.0,40407.0,0.00100664]
[1645183108079,1.21265363,40408.0,40407.0,0.00100664]
[1645183108280,0.51265363,40408.0,40407.0,0.00100664]
[1645183108741,0.51265363,40408.0,40404.0,0.00463488]
[1645183108742,0.51265363,40408.0,40406.0,0.02200664]
[1645183108940,0.51265363,40408.0,40405.0,0.01718175]
[1645183108941,0.33349,40407.0,40405.0,0.01718175]
[1645183109138,0.0494,40406.0,40405.0,0.01218175]
[1645183109339,0.0494,40406.0,40403.0,0.0009344]
[1645183109340,1.358939,40404.0,40403.0,0.0009344]
[1645183109540,1.358939,40404.0,40401.0,0.002]
[1645183109541,1.297,40402.0,40401.0,0.00093]
[1645183109840,1.297,40402.0,40400.0,9.571804]
[1645183109841,1.82520207,40401.0,40400.0,9.571804]
[1645183110040,0.80098433,40401.0,40400.0,9.547504]
[1645183110241,0.90098433,40401.0,40400.0,9.547504]
[1645183110447,0.90098433,40401.0,40400.0,9.410204]
[1645183110840,1.00098433,40401.0,40400.0,9.410204]
[1645183111044,0.71338188,40401.0,40400.0,9.053476]
[1645183111243,0.66338188,40401.0,40400.0,9.053476]
[1645183111644,0.61338188,40401.0,40400.0,9.05373809]
[1645183111846,0.61338188,40401.0,40400.0,7.5777725]
[1645183111847,1.01338188,40401.0,40400.0,7.5777725]
[1645183112045,1.01338188,40401.0,40400.0,3.82515595]
[1645183112046,2.60703236,40401.0,40400.0,3.82515595]
[1645183112244,4.28163478,40401.0,40400.0,2.67351004]
[1645183112483,5.29450656,40401.0,40400.0,1.53609604]
[1645183112684,5.29450656,40401.0,40398.0,0.003]
[1645183112685,0.33533659,40400.0,40398.0,0.002]
[1645183112891,0.33533659,40400.0,40384.0,0.026]
[1645183112892,0.15,40387.0,40365.0,0.001]
[1645183113094,0.15,40387.0,40354.0,1.36]
[1645183113095,0.7,40374.0,40355.0,0.40038779]
[1645183113286,0.30054517,40373.0,40355.0,0.3649]
[1645183113688,0.30054517,40373.0,40364.0,0.25001079]
[1645183113889,0.7,40371.0,40364.0,0.25001079]
[1645183114084,0.7,40371.0,40365.0,0.3]
[1645183114085,0.0494,40370.0,40365.0,0.3]
[1645183114288,0.0494,40370.0,40361.0,0.001]
[1645183114289,1.01893688,40366.0,40351.0,0.0310521]
[1645183114489,1.647,40352.0,40345.0,0.01]
[1645183114688,1.647,40352.0,40345.0,0.0464597]
[1645183114689,0.7,40346.0,40345.0,0.0464597]
[1645183114889,0.7,40346.0,40343.0,0.0021073]
[1645183115088,0.6664,40346.0,40343.0,0.0021073]
[1645183115288,0.03416,40354.0,40345.0,1.215]
[1645183115289,0.062022,40349.0,40345.0,1.215]
[1645183115495,0.062022,40349.0,40345.0,0.48106463]
[1645183115693,1.78755125,40354.0,40345.0,0.48106463]
[1645183116138,1.78755125,40354.0,40339.0,0.00492228]
[1645183116139,0.7,40350.0,40339.0,0.00492228]
[1645183116338,0.062016,40347.0,40339.0,0.00492228]
[1645183116540,0.062016,40347.0,40345.0,0.2517369]
[1645183116541,60.062024,40346.0,40345.0,0.2517369]
[1645183116737,60.0,40346.0,40345.0,0.2517369]
[1645183116944,59.322,40346.0,40345.0,0.2517369]
[1645183117140,56.37538914,40346.0,40345.0,0.2517369]
[1645183117335,56.37538914,40346.0,40345.0,0.83219631]
[1645183117336,52.75131486,40346.0,40345.0,0.83219631]
[1645183117536,51.90131486,40346.0,40345.0,0.84508669]
[1645183117736,51.90131486,40346.0,40345.0,0.94448669]
[1645183117936,48.99821486,40346.0,40345.0,1.23507246]
[1645183118137,36.74897946,40346.0,40345.0,1.29322276]
[1645183118346,36.74897946,40346.0,40345.0,2.59022276]
[1645183118347,29.92791675,40346.0,40345.0,2.59022276]
[1645183118543,29.92791675,40346.0,40345.0,2.76490009]
[1645183118544,17.67072343,40346.0,40345.0,2.76490009]
[1645183118746,7.5672614,40346.0,40345.0,2.78735009]
[1645183118946,0.3737,40380.0,40345.0,2.78735009]
[1645183118947,0.30004,40380.0,40353.0,0.0061503]
[1645183119142,0.0093,40394.0,40379.0,0.03548779]
[1645183119441,0.30838987,40406.0,40376.0,0.15]
[1645183119442,0.00026434,40396.0,40377.0,0.05]
[1645183119645,0.34516902,40383.0,40375.0,0.1]
[1645183119907,0.34516902,40383.0,40372.0,0.05]
[1645183120108,0.34516902,40383.0,40374.0,0.2]
[1645183120306,0.34516902,40383.0,40375.0,0.0494]
[1645183120506,0.24978575,40380.0,40371.0,0.061941]
[1645183120710,0.26737489,40375.0,40371.0,0.061941]
[1645183120910,0.00499038,40374.0,40368.0,3.66e-06]
[1645183121511,0.00499038,40374.0,40367.0,0.309707]
[1645183121808,0.3,40379.0,40368.0,0.261941]
[1645183122005,0.24978575,40380.0,40368.0,0.261941]
[1645183122204,0.3618,40379.0,40369.0,0.05]
[1645183122404,0.26663294,40373.0,40367.0,0.247764]
[1645183122605,0.6618,40379.0,40368.0,0.05]
[1645183122805,0.23960362,40372.0,40368.0,0.05]
[1645183123205,0.6618,40379.0,40370.0,0.061948]
[1645183123410,0.3618,40379.0,40370.0,0.123895]
[1645183123833,0.3618,40379.0,40367.0,0.3]
[1645183124133,0.19662897,40377.0,40367.0,0.3]
[1645183124333,0.19662897,40377.0,40367.0,0.146]
[1645183124534,0.19662897,40377.0,40367.0,0.156432]
[1645183124734,0.3191872,40374.0,40368.0,1.297]
[1645183124933,0.3191872,40374.0,40367.0,0.146]
[1645183125234,0.23031229,40369.0,40365.0,0.002]
[1645183125438,0.00039784,40373.0,40366.0,0.06195898]
[1645183126332,0.32543662,40378.0,40366.0,0.061953]
[1645183126535,0.23213072,40377.0,40366.0,0.061953]
[1645183126735,0.32543662,40378.0,40367.0,0.2]
[1645183127134,0.3618,40379.0,40368.0,0.05]
[1645183127377,0.27889083,40375.0,40368.0,0.05]
[1645183127578,0.3618,40379.0,40370.0,0.123893]
[1645183127579,0.32543662,40378.0,40370.0,0.123893]
[1645183127779,0.3618,40379.0,40370.0,0.173893]
[1645183128179,0.32543662,40378.0,40370.0,0.112946]
[1645183128380,0.00037029,40377.0,40367.0,0.123891]
[1645183128585,0.04977029,40377.0,40367.0,0.123891]
[1645183128780,0.30056527,40375.0,40367.0,0.12090065]
[1645183128982,0.30056527,40375.0,40367.0,0.11740065]
[1645183129278,0.30056527,40375.0,40366.0,0.3]
[1645183129483,0.30056527,40375.0,40364.0,8.4e-06]
[1645183129683,0.37483662,40374.0,40357.0,0.2129]
[1645183129882,0.37483662,40374.0,40357.0,0.1129]
[1645183130081,0.37483662,40374.0,40364.0,0.00033517]
[1645183130284,0.00039847,40372.0,40364.0,5.17e-06]
[1645183130488,0.0494,40371.0,40364.0,5.17e-06]
[1645183130684,0.32543662,40370.0,40364.0,5.17e-06]
[1645183130886,0.0494,40371.0,40355.0,0.001341]
[1645183130887,5.483e-05,40363.0,40355.0,0.001341]
[1645183131148,0.04945483,40363.0,40352.0,2.003]
[1645183131338,0.28121428,40363.0,40352.0,2.003]
[1645183131542,0.28613795,40362.0,40352.0,2.003]
[1645183131839,0.0494,40361.0,40352.0,2.0]
[1645183132240,0.26573466,40356.0,40352.0,0.65]
[1645183132440,0.26573466,40356.0,40347.0,0.002]
[1645183132441,0.69353662,40355.0,40347.0,0.002]
[1645183132642,0.31031108,40348.0,40347.0,0.002]
[1645183132838,0.35971108,40348.0,40347.0,0.002]
[1645183133037,0.0494,40348.0,40347.0,0.002]
[1645183133337,0.30153587,40348.0,40347.0,0.002]
[1645183134137,0.30153587,40348.0,40339.0,0.00492228]
[1645183134339,0.30153587,40348.0,40342.0,0.002]
[1645183134340,0.0494,40348.0,40342.0,0.002]
[1645183134747,0.3681,40355.0,40347.0,0.32543662]
[1645183134995,0.3681,40355.0,40348.0,1.297]
[1645183135191,0.3681,40355.0,40347.0,0.37543662]
[1645183135389,0.3681,40355.0,40347.0,0.2]
[1645183135590,0.3681,40355.0,40354.0,0.617]
[1645183135792,0.3681,40355.0,40354.0,0.7864]
[1645183136595,0.1116,40355.0,40354.0,2.55883662]
[1645183136795,0.00039129,40362.0,40354.0,2.56498692]
[1645183136992,1.29e-06,40362.0,40361.0,1.914]
[1645183137193,1.29e-06,40362.0,40361.0,2.17674]
[1645183137491,1.29e-06,40362.0,40361.0,2.27674]
[1645183137790,1.29e-06,40362.0,40361.0,1.61034]
[1645183137990,1.29e-06,40362.0,40361.0,2.27674]
[1645183138189,1.29e-06,40362.0,40361.0,2.30125]
[1645183138390,0.00041046,40364.0,40361.0,2.30725]
[1645183138641,0.00041046,40364.0,40362.0,2.284]
[1645183138838,0.00041046,40364.0,40362.0,0.8364]
[1645183139537,0.00041046,40364.0,40362.0,0.8864]
[1645183139836,0.00041046,40364.0,40362.0,1.1864]
[1645183140037,0.00040068,40368.0,40362.0,2.4834]
[1645183140238,0.00040068,40368.0,40366.0,1.984]
[1645183140438,0.00040068,40368.0,40367.0,1.4164]
[1645183140636,0.00040068,40368.0,40367.0,1.7164]
[1645183140837,0.3891,40374.0,40367.0,1.7164]
[1645183141043,0.3891,40374.0,40367.0,1.69645]
[1645183141044,0.00038599,40370.0,40367.0,1.69645]
[1645183141239,0.3891,40374.0,40371.0,1.297]
[1645183141439,0.3891,40374.0,40372.0,1.3426]
[1645183141640,0.3891,40374.0,40372.0,1.3859989]
[1645183141836,0.3891,40374.0,40372.0,1.4859989]
[1645183142139,0.3891,40374.0,40373.0,1.367]
[1645183142382,0.1891,40374.0,40373.0,1.5626]
[1645183142685,0.428259,40413.0,40383.0,1.297]
[1645183142686,0.20529146,40409.0,40383.0,1.297]
[1645183142883,0.2569595,40411.0,40384.0,1.30125071]
[1645183142884,0.30961887,40392.0,40384.0,1.30125071]
[1645183143082,0.30961887,40392.0,40384.0,0.0956]
[1645183143283,0.19745945,40406.0,40384.0,0.0956]
[1645183143581,0.19745945,40406.0,40385.0,0.3]
[1645183143582,0.00029978,40390.0,40385.0,0.3]
[1645183143783,0.00029978,40390.0,40386.0,1.40452105]
[1645183143982,0.00029978,40390.0,40388.0,1.297]
[1645183144189,0.00029978,40390.0,40389.0,1.597]
[1645183144488,0.2569595,40412.0,40390.0,1.297]
[1645183144489,0.31989638,40404.0,40390.0,1.297]
[1645183144686,0.00029978,40391.0,40390.0,1.358904]
[1645183144991,0.00029978,40391.0,40390.0,1.528904]
[1645183145185,0.00029978,40391.0,40390.0,0.96638104]
[1645183145385,0.3,40410.0,40390.0,1.19039647]
[1645183145587,0.36910036,40411.0,40394.0,0.73447704]
[1645183145785,0.30292277,40408.0,40396.0,0.73447704]
[1645183145987,0.30292277,40408.0,40399.0,0.06189449]
[1645183146234,0.19345684,40404.0,40399.0,0.10749449]
[1645183146436,0.19345684,40404.0,40399.0,0.01187893]
[1645183147640,0.36910036,40411.0,40399.0,0.01187893]
[1645183147838,0.36910036,40411.0,40402.0,0.2213]
[1645183148036,0.36910036,40411.0,40406.0,1.297]
[1645183148236,0.00029978,40407.0,40406.0,1.347]
[1645183148439,0.00029978,40407.0,40406.0,0.0456]
[1645183149339,0.36910036,40411.0,40407.0,0.06188775]
[1645183149535,0.0999922,40408.0,40407.0,0.06188775]
[1645183149986,0.0999922,40408.0,40406.0,0.0456]
[1645183150984,0.00040083,40409.0,40406.0,0.061891]
[1645183151183,0.00040083,40409.0,40403.0,0.12376462]
[1645183151585,0.26450515,40410.0,40403.0,0.12376462]
[1645183151784,0.00029962,40408.0,40403.0,0.12376462]
[1645183152186,0.10029182,40408.0,40403.0,0.12376462]
[1645183152684,0.10029182,40408.0,40404.0,0.061894]
[1645183152887,0.36910036,40411.0,40404.0,0.061894]
[1645183153186,0.00029962,40408.0,40405.0,0.061895]
[1645183153383,0.00029962,40408.0,40405.0,0.18582111]
[1645183153836,0.10029182,40408.0,40406.0,0.123771]
[1645183154038,0.0999922,40408.0,40406.0,0.123771]
[1645183154237,0.36910036,40411.0,40406.0,0.123771]
[1645183154238,0.0004009,40409.0,40406.0,0.123771]
[1645183154436,0.0999922,40408.0,40406.0,0.123771]
[1645183154640,0.0999922,40408.0,40405.0,0.18582111]
[1645183155037,0.0999922,40408.0,40405.0,0.23582111]
[1645183155438,0.0004009,40409.0,40405.0,0.23582111]
[1645183155636,0.1003931,40409.0,40405.0,0.18582111]
[1645183156236,0.0004009,40409.0,40405.0,0.18582111]
[1645183156437,0.19900159,40410.0,40405.0,0.18582111]
[1645183156438,0.0999922,40406.0,40405.0,0.18582111]
[1645183156938,0.0999922,40408.0,40405.0,0.18582111]
[1645183157383,0.0999922,40408.0,40405.0,0.06204582]
[1645183158288,0.0999922,40408.0,40405.0,0.06604582]
[1645183158683,0.0999922,40408.0,40405.0,0.18982618]
[1645183159385,0.0999922,40408.0,40405.0,0.18582618]
[1645183159586,0.36910036,40411.0,40405.0,0.18582618]
[1645183159791,0.0999922,40409.0,40405.0,0.24770818]
[1645183159991,0.23679558,40408.0,40405.0,0.12393118]
[1645183160190,0.0999922,40406.0,40405.0,0.00015082]
[1645183160392,0.3999922,40406.0,40405.0,0.00391898]
[1645183161232,0.71341286,40406.0,40405.0,0.00391898]
[1645183161632,0.3999922,40406.0,40405.0,0.00391898]
[1645183161834,0.0999922,40406.0,40404.0,0.06189951]
[1645183162039,0.0999922,40406.0,40400.0,0.012]
[1645183162040,0.21700736,40401.0,40400.0,0.012]
[1645183162241,0.61699956,40401.0,40393.0,0.05]
[1645183162441,0.21700736,40401.0,40387.0,0.123834]
[1645183162638,0.0999922,40395.0,40387.0,0.123834]
[1645183162938,0.34209726,40392.0,40387.0,0.123834]
[1645183163139,0.509,40391.0,40383.0,0.05]
[1645183163339,0.509,40391.0,40380.0,0.00025565]
[1645183163340,0.3,40390.0,40380.0,0.00025565]
[1645183163538,0.3,40390.0,40379.0,0.00025565]
[1645183163539,0.0999922,40383.0,40379.0,0.00025565]
[1645183163738,0.0999922,40383.0,40372.0,0.02451]
[1645183163739,0.0999922,40383.0,40372.0,0.06169266]
[1645183163935,0.0999922,40383.0,40374.0,0.06194153]
[1645183164139,0.19703891,40381.0,40374.0,0.06194153]
[1645183164337,0.3,40385.0,40378.0,0.04951598]
[1645183164536,2.08798777,40386.0,40375.0,0.12386689]
[1645183164736,2.08798777,40386.0,40375.0,0.24799354]
[1645183164993,0.6089922,40391.0,40375.0,0.24773789]
[1645183165189,0.6089922,40391.0,40376.0,0.02451]
[1645183165190,0.82815826,40391.0,40376.0,0.02451]
[1645183165388,0.3,40390.0,40379.0,0.061932]
[1645183165588,0.509,40391.0,40381.0,0.06192664]
[1645183165788,0.509,40391.0,40380.0,0.123854]
[1645183165990,0.29524595,40389.0,40380.0,0.123854]
[1645183166189,0.29524595,40389.0,40380.0,0.173854]
[1645183166989,0.809,40391.0,40380.0,0.173854]
[1645183167192,0.509,40391.0,40380.0,0.173854]
[1645183167390,0.39262658,40391.0,40385.0,0.061927]
[1645183167596,0.17922438,40391.0,40385.0,0.111927]
[1645183167792,0.47922438,40391.0,40385.0,0.05]
[1645183167991,0.3353817,40389.0,40386.0,0.06192357]
[1645183168192,0.06827041,40385.0,40380.0,0.297705]
[1645183168390,0.06827041,40385.0,40382.0,0.00013979]
[1645183168832,0.06827041,40385.0,40383.0,0.061927]
[1645183169231,0.06827041,40385.0,40383.0,0.17384891]
[1645183169633,0.06827041,40385.0,40383.0,0.12384891]
[1645183170235,0.06827041,40385.0,40383.0,0.17384891]
[1645183172134,0.06827041,40385.0,40383.0,0.111927]
[1645183172985,0.06827041,40385.0,40383.0,0.17384917]
[1645183173384,0.06827041,40385.0,40384.0,0.00013944]
[1645183175387,0.06827041,40385.0,40378.0,0.10986344]
[1645183175582,0.06827041,40385.0,40378.0,0.1]
[1645183175783,0.06827041,40385.0,40377.0,0.3]
[1645183176436,0.06827041,40385.0,40379.0,0.06191918]
[1645183176635,0.06827041,40385.0,40380.0,0.06192]
[1645183177038,0.06827041,40385.0,40380.0,0.36192]
[1645183177236,0.06827041,40385.0,40380.0,0.23574629]
[1645183177436,0.06827041,40385.0,40380.0,0.33574629]
[1645183178044,0.06740666,40385.0,40380.0,0.33574629]
[1645183178437,0.06769907,40385.0,40381.0,0.00012603]
[1645183180590,0.05694147,40385.0,40381.0,0.00012603]
[1645183181491,0.05694147,40385.0,40382.0,1.297]
[1645183181695,0.05694147,40385.0,40384.0,1.297]
[1645183181890,0.05694147,40385.0,40384.0,1.4926]
[1645183182488,8.05694147,40385.0,40384.0,1.4926]
[1645183182687,8.05694147,40385.0,40384.0,1.4946]
[1645183183492,8.05694147,40385.0,40384.0,1.49472895]
[1645183184042,8.05694147,40385.0,40384.0,1.49272895]
[1645183184641,8.05694147,40385.0,40384.0,1.49572895]
[1645183186744,8.05694147,40385.0,40384.0,1.49872895]
[1645183187684,8.05694147,40385.0,40384.0,1.56872895]
[1645183188084,8.05694147,40385.0,40384.0,1.56272895]
[1645183189688,8.05694147,40385.0,40384.0,0.26572895]
[1645183189888,8.05694147,40385.0,40384.0,0.16572895]
[1645183190491,8.05694147,40385.0,40384.0,0.46572895]
[1645183190690,8.05694147,40385.0,40384.0,1.48723895]
[1645183190893,8.05694147,40385.0,40384.0,1.58723895]
[1645183192335,8.05694147,40385.0,40384.0,0.29023895]
[1645183192535,8.05694147,40385.0,40384.0,1.48723895]
[1645183192938,8.05694147,40385.0,40384.0,1.58723895]
[1645183193140,8.05694147,40385.0,40384.0,1.58923858]
[1645183193337,8.05694147,40385.0,40384.0,1.78903858]
[1645183193542,8.05694147,40385.0,40384.0,1.58923858]
[1645183195987,8.05694147,40385.0,40384.0,1.51472858]
[1645183196786,8.05694147,40385.0,40384.0,1.56472858]
[1645183197788,8.05665124,40385.0,40384.0,1.56472858]
[1645183198188,8.05732559,40385.0,40384.0,1.56272895]
[1645183198643,8.05732559,40385.0,40384.0,1.56572895]
[1645183199239,8.05732559,40385.0,40384.0,1.59023895]
[1645183200140,8.05732559,40385.0,40384.0,0.24323895]
[1645183200345,8.05732559,40385.0,40384.0,0.07312895]
[1645183200548,8.05732559,40385.0,40384.0,0.07012895]
[1645183201147,8.39502334,40385.0,40384.0,0.07012895]
[1645183201743,0.10453259,40383.0,40379.0,0.04096522]
[1645183202144,0.23881127,40380.0,40379.0,0.04096522]
[1645183202389,0.53881127,40380.0,40379.0,0.08850056]
[1645183202592,0.53881127,40380.0,40379.0,0.08550056]
[1645183202891,0.23881127,40380.0,40379.0,0.08850056]
[1645183203489,0.38881127,40380.0,40379.0,0.08850056]
[1645183203692,0.23881127,40380.0,40379.0,0.08850056]
[1645183203895,0.53881127,40380.0,40379.0,0.08850056]
[1645183204290,0.53881127,40380.0,40379.0,0.05053534]
[1645183204690,0.53881127,40380.0,40379.0,0.04953534]
[1645183205090,0.23881127,40380.0,40379.0,0.04953534]
[1645183205391,0.13708521,40370.0,40369.0,0.12387045]
[1645183205593,0.13708521,40370.0,40369.0,0.00156008]
[1645183205791,0.13708521,40370.0,40369.0,0.00181699]
[1645183205996,0.13708521,40370.0,40366.0,0.123879]
[1645183205997,0.15,40368.0,40366.0,0.123879]
[1645183206243,0.15,40368.0,40364.0,0.125881]
[1645183206244,0.0999922,40367.0,40364.0,0.002]
[1645183206450,0.25782306,40366.0,40364.0,0.002]
[1645183206642,0.4851582,40366.0,40364.0,0.002]
[1645183207043,0.3,40365.0,40364.0,0.002]
[1645183207244,0.45,40365.0,40353.0,0.03684503]
[1645183207444,0.45,40365.0,40350.0,0.1]
[1645183207445,0.3092,40365.0,40350.0,0.1]
[1645183207644,0.2499922,40361.0,40358.0,0.0001]
[1645183207847,0.16817379,40360.0,40347.0,0.05]
[1645183208044,0.0999922,40355.0,40347.0,0.05]
[1645183208245,0.0999922,40355.0,40354.0,0.02190458]
[1645183208643,0.35650423,40355.0,40354.0,0.02490458]
[1645183209346,0.35650423,40355.0,40354.0,0.02832085]
[1645183209543,0.35650423,40355.0,40352.0,0.00033624]
[1645183209544,0.00300373,40354.0,40352.0,0.00033624]
[1645183209745,0.00300373,40354.0,40352.0,6.24e-06]
[1645183209999,0.15,40353.0,40352.0,6.24e-06]
[1645183210197,0.20125127,40353.0,40352.0,6.24e-06]
[1645183210393,0.06498773,40354.0,40352.0,6.24e-06]
[1645183210394,0.21498773,40354.0,40352.0,6.24e-06]
[1645183210593,0.21498773,40354.0,40346.0,0.8442089]
[1645183210594,0.07448773,40354.0,40346.0,0.8442089]
[1645183210796,0.0999922,40352.0,40347.0,0.001]
[1645183211799,0.3999922,40352.0,40347.0,0.001]
[1645183212196,0.60512208,40352.0,40347.0,0.001]
[1645183212397,0.0999922,40352.0,40347.0,0.001]
[1645183212596,0.0999922,40352.0,40346.0,0.8452089]
[1645183212597,0.1009922,40352.0,40346.0,0.8452089]
[1645183212801,0.1009922,40352.0,40346.0,0.9452089]
[1645183213199,0.001,40352.0,40349.0,0.061974]
[1645183213404,0.001,40352.0,40351.0,0.00112061]
[1645183213840,0.001,40352.0,40351.0,0.00071561]
[1645183214042,0.001,40352.0,40351.0,1.34239476]
[1645183214449,0.5237,40353.0,40351.0,1.54189476]
[1645183214450,0.45501526,40353.0,40351.0,1.54189476]
[1645183214746,0.0004047,40367.0,40357.0,1.297]
[1645183214944,0.0004047,40367.0,40358.0,1.3465]
[1645183215249,0.0999922,40367.0,40359.0,0.18584734]
[1645183215449,0.36039938,40360.0,40354.0,0.0495]
[1645183215642,0.52331858,40370.0,40354.0,0.0495]
[1645183215643,0.00040478,40367.0,40354.0,0.0495]
[1645183215843,0.00040478,40367.0,40354.0,0.17343]
[1645183215844,0.0999922,40362.0,40354.0,0.17343]
[1645183216043,0.30797064,40362.0,40354.0,0.111463]
[1645183216244,0.40796284,40362.0,40354.0,0.0495]
[1645183216641,0.40796284,40362.0,40354.0,0.0535]
[1645183216642,0.26581907,40361.0,40354.0,0.0535]
[1645183216844,0.0999922,40355.0,40354.0,0.004]
[1645183217048,0.4982,40359.0,40354.0,0.0438895]
[1645183217244,0.4982,40359.0,40354.0,0.004]
[1645183218089,0.4982,40359.0,40352.0,0.123925]
[1645183218489,0.4982,40359.0,40356.0,0.06208573]
[1645183220790,0.4982,40359.0,40356.0,0.06408573]
[1645183221444,0.4982,40359.0,40356.0,0.05908573]
[1645183222037,0.4982,40359.0,40356.0,0.05934143]
[1645183222438,0.4982,40359.0,40356.0,0.0022557]
[1645183223440,0.49844968,40359.0,40358.0,0.00013425]
[1645183226792,0.49844968,40359.0,40358.0,0.00038995]
[1645183226989,0.49816581,40359.0,40358.0,0.00013425]
[1645183227189,0.49816581,40359.0,40358.0,0.00038995]
[1645183227393,0.49816581,40359.0,40358.0,0.00013425]
[1645183227591,0.49816581,40359.0,40358.0,0.00038995]
[1645183227791,0.49816581,40359.0,40358.0,0.00013425]
[1645183227991,0.49816581,40359.0,40358.0,0.00038995]
[1645183228192,0.49816581,40359.0,40358.0,0.00013425]
[1645183228391,0.49816581,40359.0,40358.0,0.00038995]
[1645183228656,0.49841549,40359.0,40358.0,0.0002557]
[1645183228842,0.49841549,40359.0,40358.0,0.0022557]
[1645183229046,0.49841549,40359.0,40358.0,0.002]
[1645183229243,0.49841549,40359.0,40358.0,0.0022557]
[1645183229446,0.49841549,40359.0,40358.0,0.3517557]
[1645183229843,0.49841549,40359.0,40358.0,0.1517557]
[1645183230046,0.49841549,40359.0,40358.0,0.0497557]
[1645183230444,0.49707073,40359.0,40358.0,0.0497557]
[1645183230844,0.49707073,40359.0,40358.0,0.0527557]
[1645183231050,0.1,40373.0,40361.0,0.06194923]
[1645183231051,0.02758192,40370.0,40361.0,0.06194923]
[1645183231257,0.00040549,40369.0,40365.0,1.34167915]
[1645183231552,0.00040549,40369.0,40368.0,0.04467915]
[1645183231753,0.00040549,40369.0,40368.0,0.09417915]
[1645183232146,0.02758192,40370.0,40368.0,0.09417915]
[1645183232399,0.02758192,40370.0,40369.0,0.04467915]
[1645183232605,0.02758192,40370.0,40369.0,0.09417915]
[1645183233002,0.02758192,40370.0,40369.0,1.39117915]
[1645183233401,0.02758192,40370.0,40369.0,1.44167915]
[1645183233602,0.02758192,40370.0,40369.0,1.48727915]
[1645183233802,0.02758192,40370.0,40369.0,1.53727915]
[1645183234000,0.02758192,40370.0,40369.0,1.53227915]
[1645183234801,0.02758192,40370.0,40369.0,1.63227915]
[1645183235503,0.02758192,40370.0,40369.0,0.1456]